bitfinex/quotes_ETHUSD_20240817
["timestamp","ask_amount","ask_price","bid_price","bid_amount"]
[1723876249619,0.08761796,2605.4,2605.3,7.67664]
[1723876249911,0.08761796,2605.4,2605.3,8.444304]
[1723876251909,0.08761796,2605.4,2605.3,7.67664]
[1723876253695,0.08761796,2605.4,2605.3,14.00856]
[1723876253902,0.08761796,2605.4,2605.3,17.55856]
[1723876254105,19.62,2605.6,2605.5,7.67606]
[1723876254405,19.62,2605.8,2605.7,3.83774]
[1723876255190,20.949,2605.8,2605.7,3.83774]
[1723876259722,1.329,2605.8,2605.7,10.16908]
[1723876259955,1.329,2605.8,2605.7,11.185988]
[1723876261270,1.20851063,2605.9,2605.8,3.83759]
[1723876261625,1.20851063,2606.0,2605.8,3.83759]
[1723876262165,1.20851063,2606.0,2605.9,3.83744]
[1723876266510,1.29306387,2606.0,2605.9,3.83744]
[1723876268685,0.08480351,2606.0,2605.9,3.83744]
[1723876268991,1.29306387,2606.0,2605.9,3.83744]
[1723876270009,0.08480351,2606.0,2605.9,7.67488]
[1723876270372,1.20826036,2606.2,2606.0,3.8372]
[1723876270573,1.20826036,2606.2,2606.1,3.83715]
[1723876270774,1.20826036,2606.3,2606.1,3.83715]
[1723876271234,1.20826036,2606.2,2606.1,3.83715]
[1723876272924,1.20826036,2606.3,2606.1,3.83715]
[1723876278249,1.61084735,2606.5,2606.4,7.6734]
[1723876278250,1.20826036,2606.5,2606.4,7.6734]
[1723876278448,9.885,2606.9,2606.4,7.6734]
[1723876278449,1.20826036,2606.9,2606.7,3.83618]
[1723876278679,20.82826036,2607.0,2606.9,3.83597]
[1723876278888,19.62,2607.0,2606.9,3.83597]
[1723876279381,1.20826036,2607.2,2607.0,3.83574]
[1723876279580,23.25326036,2607.4,2607.0,3.83574]
[1723876279739,1.35077604,2607.3,2607.0,3.83574]
[1723876280302,2.5590364,2607.3,2607.0,3.83574]
[1723876280444,1.35077604,2607.3,2607.0,3.83574]
[1723876281449,0.07414468,2607.2,2607.0,3.83574]
[1723876281785,1.35077604,2607.3,2607.0,3.83574]
[1723876281952,1.35077604,2607.3,2607.1,3.83564]
[1723876286259,19.62,2607.4,2607.1,3.83564]
[1723876289858,19.62,2607.5,2607.1,3.83564]
[1723876290564,2.425,2607.4,2606.9,3.83589]
[1723876290908,6.26127,2606.7,2606.1,3.83705]
[1723876291217,3.83642,2606.6,2606.1,3.83705]
[1723876291369,2.425,2606.4,2605.9,3.83741]
[1723876291792,2.425,2606.4,2605.9,3.83736]
[1723876292108,2.425,2606.4,2605.9,7.67471]
[1723876293097,2.425,2606.4,2606.0,3.83727]
[1723876293262,3.6936202,2606.4,2606.0,3.83727]
[1723876294732,3.6936202,2606.4,2605.7,3.0]
[1723876294733,2.4661,2606.1,2605.7,3.0]
[1723876295003,2.4661,2606.1,2605.5,3.83793]
[1723876295004,0.630316,2606.0,2605.5,3.83793]
[1723876296208,0.630316,2606.0,2605.6,3.0]
[1723876296512,0.07153744,2605.9,2605.6,3.0]
[1723876296889,0.07153744,2605.9,2605.6,6.83781]
[1723876297604,22.0861,2606.1,2605.6,6.83781]
[1723876297805,0.07149603,2605.8,2605.6,6.83781]
[1723876298005,22.0861,2606.1,2605.6,6.83781]
[1723876298205,0.07148198,2605.7,2605.6,3.0]
[1723876298405,22.0861,2606.1,2605.6,3.0]
[1723876298623,0.07148198,2605.7,2605.6,3.0]
[1723876298813,22.212316,2606.0,2605.6,3.0]
[1723876299012,0.07150212,2605.7,2605.6,3.0]
[1723876299527,26.049636,2606.0,2605.6,3.0]
[1723876299695,0.07150212,2605.7,2605.6,3.0]
[1723876300022,22.212316,2606.0,2605.6,3.0]
[1723876300208,0.07148975,2605.7,2605.6,6.83784]
[1723876300522,19.62,2606.0,2605.7,3.83771]
[1723876304706,2.4661,2606.1,2605.7,3.83771]
[1723876304899,3.096411,2606.1,2605.7,3.83771]
[1723876306128,3.096411,2606.1,2605.6,3.0]
[1723876306331,6.933641,2606.1,2605.6,3.0]
[1723876306717,3.83732,2606.0,2605.6,3.0]
[1723876309731,6.933561,2606.1,2605.6,3.0]
[1723876309953,6.933561,2606.1,2605.7,3.83773]
[1723876309954,2.4661,2606.1,2605.7,3.83773]
[1723876310116,23.45701,2606.2,2605.7,3.83773]
[1723876310721,19.62,2606.1,2605.7,3.83773]
[1723876311541,0.07098573,2606.0,2605.9,3.83733]
[1723876311744,0.07098573,2606.0,2605.9,7.67477]
[1723876312047,0.07098573,2606.0,2605.9,10.67477]
[1723876312823,0.07098573,2606.0,2605.9,14.51221]
[1723876313149,21.9896,2606.9,2606.3,3.83673]
[1723876313355,21.9896,2606.9,2606.4,6.8367]
[1723876313538,0.07108832,2606.8,2606.4,6.8367]
[1723876314613,23.45589,2607.0,2606.4,6.8367]
[1723876314614,27.29179,2607.0,2606.4,6.8367]
[1723876314815,2.77450997,2606.9,2606.4,6.8367]
[1723876315416,0.07113493,2606.9,2606.5,7.6731]
[1723876315615,6.20538,2607.1,2606.5,3.83655]
[1723876315817,1.12492404,2607.0,2606.5,3.83648]
[1723876316037,1.19609334,2607.0,2606.6,3.83633]
[1723876319220,1.19609334,2607.0,2606.7,3.83626]
[1723876319414,0.0711693,2607.0,2606.7,3.83626]
[1723876319628,6.20499,2607.3,2606.7,3.83626]
[1723876319829,0.07129589,2607.2,2606.7,3.83626]
[1723876321179,0.07129589,2607.2,2606.9,3.83596]
[1723876321334,0.07129589,2607.2,2607.1,3.83567]
[1723876321670,0.07135913,2607.2,2607.1,3.83567]
[1723876321823,2.3696,2607.6,2607.1,3.83567]
[1723876322367,0.06900788,2607.5,2607.1,3.83567]
[1723876322572,0.8171807,2607.5,2607.1,3.83567]
[1723876325125,0.06900788,2607.5,2607.1,3.83567]
[1723876325325,0.06900788,2607.5,2607.0,3.83581]
[1723876325535,0.06900788,2607.5,2606.8,3.836]
[1723876325800,3.83524,2607.4,2606.8,3.836]
[1723876326068,0.06897353,2607.3,2606.8,7.67203]
[1723876326365,0.06897353,2607.3,2606.8,3.836]
[1723876326573,0.06897353,2607.3,2606.8,7.67203]
[1723876326743,0.06897353,2607.3,2606.9,3.83595]
[1723876328898,4.40802557,2607.3,2606.7,7.67243]
[1723876329194,0.57256557,2607.3,2606.8,3.83607]
[1723876330551,0.57256557,2607.3,2606.7,3.83618]
[1723876330756,6.53113056,2607.2,2606.7,3.83618]
[1723876331168,0.06900057,2607.1,2606.7,3.83618]
[1723876331464,19.68900057,2607.1,2606.7,3.83618]
[1723876332695,23.52469057,2607.1,2606.5,6.83647]
[1723876332894,3.00558211,2607.0,2606.6,3.83629]
[1723876333193,0.06913936,2606.9,2606.6,3.83629]
[1723876333991,0.06913936,2606.9,2606.5,10.67294]
[1723876334192,0.06913936,2606.9,2606.7,3.83625]
[1723876334696,19.62,2607.1,2606.7,3.83625]
[1723876334849,2.68422114,2607.0,2606.7,3.83625]
[1723876337467,22.30422114,2607.0,2606.7,3.83625]
[1723876337667,19.68910508,2607.0,2606.7,3.83625]
[1723876341350,19.68910508,2607.0,2606.7,7.6725]
[1723876341534,19.68910508,2607.0,2606.9,3.83597]
[1723876342254,19.68910508,2607.0,2606.9,8.677424]
[1723876343563,0.06910508,2607.0,2606.9,8.677424]
[1723876343725,0.06910508,2607.0,2606.9,11.677424]
[1723876343925,19.62,2607.6,2607.3,3.83534]
[1723876344224,0.06911775,2607.5,2607.3,3.83534]
[1723876344943,0.06911775,2607.5,2607.1,7.67115]
[1723876345261,0.06911775,2607.5,2607.2,3.83544]
[1723876355423,1.20826036,2607.4,2607.2,3.83544]
[1723876355626,1.20826036,2607.4,2606.9,3.83584]
[1723876355627,2.3262,2607.3,2606.9,3.83584]
[1723876355810,2.3262,2607.3,2606.8,3.83609]
[1723876355811,3.59917655,2607.3,2606.8,3.83609]
[1723876356011,5.31292666,2607.3,2606.8,3.83609]
[1723876356197,1.20826036,2607.2,2606.8,3.83609]
[1723876356396,1.20826036,2607.2,2606.7,3.83613]
[1723876356612,0.06462219,2607.1,2606.7,7.6723]
[1723876357351,2.3262,2607.0,2606.7,7.6723]
[1723876357648,0.06457788,2606.9,2606.7,3.83613]
[1723876357851,0.06457788,2606.9,2606.8,3.83612]
[1723876358549,0.06455888,2606.9,2606.8,3.83612]
[1723876358734,1.20826036,2607.1,2606.8,3.83612]
[1723876358945,0.06457292,2607.0,2606.8,3.83612]
[1723876359651,0.06457292,2607.0,2606.9,3.83597]
[1723876361612,1.27283328,2607.0,2606.9,3.83597]
[1723876362416,1.27283328,2607.0,2606.9,7.67194]
[1723876362643,0.06457292,2607.0,2606.9,8.822747]
[1723876362845,0.06457292,2607.0,2606.9,7.67194]
[1723876368115,0.06457292,2607.0,2606.9,3.83597]
[1723876368755,1.27258642,2607.0,2606.9,3.83597]
[1723876369762,1.27257748,2607.0,2606.9,3.83597]
[1723876371015,0.06457292,2607.0,2606.9,3.83597]
[1723876371215,1.27257748,2607.0,2606.9,3.83597]
[1723876373873,0.06457292,2607.0,2606.9,3.83597]
[1723876374462,1.27256134,2607.0,2606.9,3.83597]
[1723876377967,1.27256134,2607.0,2606.8,3.8361]
[1723876378467,1.27256134,2607.0,2606.9,3.83597]
[1723876379826,0.06457292,2607.0,2606.7,3.83617]
[1723876380059,0.06457292,2607.0,2606.1,6.20797]
[1723876380060,2.4745,2606.7,2606.1,6.20797]
[1723876380271,1.20824149,2606.5,2605.9,6.2082]
[1723876380477,3.68274149,2606.4,2605.9,3.8373]
[1723876380658,1.20824149,2606.2,2605.9,3.8373]
[1723876380966,0.0504145,2606.1,2605.7,6.20854]
[1723876381167,1.20824149,2605.9,2605.7,3.83764]
[1723876381364,1.25858187,2605.8,2605.3,3.83827]
[1723876381548,0.05034038,2605.8,2605.6,3.83774]
[1723876381991,1.20870886,2606.0,2605.6,3.83774]
[1723876382152,1.20870886,2606.0,2605.3,3.83819]
[1723876382153,6.36234409,2605.9,2605.3,3.83819]
[1723876382349,1.20870886,2605.8,2605.4,3.83818]
[1723876382685,0.05023887,2605.7,2605.4,3.83818]
[1723876383051,3.96517861,2605.9,2605.4,3.83818]
[1723876383244,0.05019228,2605.6,2605.4,3.83818]
[1723876383448,2.4745,2605.9,2605.4,3.83818]
[1723876383783,1.20870886,2606.1,2605.7,3.83762]
[1723876383982,4.08548865,2606.2,2605.8,3.83749]
[1723876383983,0.05024847,2606.0,2605.8,3.83749]
[1723876384161,2.4745,2606.2,2605.8,3.83749]
[1723876384162,3.4679791,2606.2,2605.8,3.83749]
[1723876384364,0.05018112,2606.1,2605.8,3.83749]
[1723876385388,5.04545886,2606.4,2605.8,3.83749]
[1723876385560,3.30898972,2606.3,2605.9,3.83744]
[1723876386377,3.30898972,2606.3,2605.7,3.83762]
[1723876386378,7.14591972,2606.3,2605.7,3.83762]
[1723876386699,0.45176986,2606.2,2605.7,3.83762]
[1723876387109,0.05032626,2606.1,2605.8,3.83747]
[1723876387600,3.25875475,2606.3,2605.7,3.83762]
[1723876387601,0.05024024,2606.0,2605.9,3.83743]
[1723876387770,3.83675,2606.4,2605.9,3.83743]
[1723876388097,23.50720237,2606.3,2605.7,3.83762]
[1723876388252,26.60485626,2606.3,2605.7,3.83762]
[1723876388451,2.4745,2606.2,2605.7,3.83762]
[1723876388910,0.05035203,2606.1,2605.7,3.83762]
[1723876389111,0.05035203,2606.1,2605.8,3.83758]
[1723876389584,0.05035203,2606.1,2605.9,3.83742]
[1723876389891,19.62,2606.3,2605.9,3.83742]
[1723876390096,19.62,2606.3,2605.5,3.83791]
[1723876390097,0.05024024,2606.0,2605.5,3.83791]
[1723876390389,0.0502262,2605.9,2605.6,3.83784]
[1723876390752,0.0502262,2605.9,2605.5,3.83791]
[1723876390753,0.0502262,2605.9,2605.7,3.83772]
[1723876390957,0.0503099,2605.8,2605.7,3.83772]
[1723876391157,6.18062,2606.2,2605.7,3.83772]
[1723876391395,0.05024482,2606.1,2605.7,7.67544]
[1723876391560,0.05024482,2606.1,2605.7,3.83772]
[1723876391961,0.05024482,2606.1,2605.8,3.83753]
[1723876392358,0.05024482,2606.1,2605.7,3.83772]
[1723876392699,0.05024482,2606.1,2605.9,3.83743]
[1723876392992,19.62,2606.3,2605.9,0.767515]
[1723876393195,19.62,2606.3,2606.0,3.83723]
[1723876393406,0.04853109,2606.2,2606.0,3.83723]
[1723876393569,19.62,2606.3,2606.0,3.83723]
[1723876393896,0.04853109,2606.2,2606.0,3.83723]
[1723876394073,2.3435,2606.5,2606.0,3.83723]
[1723876394074,19.62,2606.4,2606.0,3.83723]
[1723876394276,0.04853249,2606.1,2606.0,3.83723]
[1723876394598,0.04861697,2606.1,2606.0,3.83723]
[1723876394961,19.62,2606.4,2606.0,3.83723]
[1723876395174,0.0485504,2606.3,2606.0,3.83723]
[1723876398515,0.0485504,2606.3,2605.9,3.83734]
[1723876399580,0.0485504,2606.3,2605.9,7.6747]
[1723876399782,2.4208504,2606.3,2605.9,3.83734]
[1723876400128,4.77136444,2606.3,2605.9,3.83734]
[1723876402605,8.60829444,2606.3,2605.7,3.83764]
[1723876403708,2.3723,2606.2,2605.7,3.83764]
[1723876404040,5.98542784,2606.2,2605.8,3.83758]
[1723876408332,5.98542784,2606.2,2605.7,3.83764]
[1723876409719,0.0484805,2606.1,2605.7,3.83764]
[1723876417826,19.6684805,2606.1,2605.7,3.83764]
[1723876418224,22.37713144,2606.1,2605.7,3.83764]
[1723876418427,2.3422,2606.0,2605.7,3.83764]
[1723876418642,0.04843454,2605.9,2605.7,3.83764]
[1723876421852,19.62,2606.1,2605.7,10.0907]
[1723876422154,0.04840286,2605.8,2605.7,3.83764]
[1723876422366,19.62,2606.1,2605.8,3.83747]
[1723876422725,19.62,2606.1,2605.9,3.8373]
[1723876422926,20.82870886,2606.1,2605.9,3.8373]
[1723876423442,1.20870886,2606.0,2605.9,3.8373]
[1723876423635,20.82870886,2606.1,2605.9,3.8373]
[1723876423854,1.20870886,2606.1,2605.9,3.8373]
[1723876424055,1.20870886,2606.0,2605.9,3.8373]
[1723876424366,1.20870886,2606.1,2605.9,3.8373]
[1723876424573,1.20870886,2606.0,2605.9,3.8373]
[1723876425587,1.61098865,2606.1,2605.9,3.8373]
[1723876426030,1.61098865,2606.0,2605.9,3.8373]
[1723876426424,1.61098865,2606.1,2605.9,3.8373]
[1723876426629,1.20933281,2606.0,2605.9,3.8373]
[1723876428872,1.20961295,2606.0,2605.9,3.8373]
[1723876429666,1.61098865,2606.0,2605.9,3.8373]
[1723876429873,1.61098865,2606.1,2605.9,3.8373]
[1723876430174,1.61098865,2606.0,2605.9,3.8373]
[1723876431152,1.20980008,2606.0,2605.9,3.8373]
[1723876431536,1.25830061,2606.0,2605.9,3.8373]
[1723876432868,0.04850053,2606.0,2605.9,3.8373]
[1723876434247,1.65948918,2606.0,2605.9,3.8373]
[1723876434784,0.04850053,2606.0,2605.9,3.8373]
[1723876435278,1.65948918,2606.0,2605.9,3.8373]
[1723876435577,0.04850053,2606.0,2605.9,3.8373]
[1723876435785,1.25834592,2606.0,2605.9,3.8373]
[1723876436162,1.65948918,2606.0,2605.9,3.8373]
[1723876439146,1.25835086,2606.0,2605.9,3.8373]
[1723876440264,0.04850053,2606.0,2605.9,8.44989156]
[1723876440467,0.04850053,2606.0,2605.9,13.77048]
[1723876440705,0.04850053,2606.0,2605.9,20.10747349]
[1723876440910,0.04850053,2606.0,2605.9,21.46403321]
[1723876441204,19.62,2606.3,2606.2,9.9323]
[1723876441407,19.62,2606.3,2606.2,16.26929349]
[1723876441967,19.62,2606.3,2606.2,12.9323]
[1723876444702,20.82985033,2606.9,2606.5,3.83656]
[1723876445425,23.89650399,2606.9,2606.5,3.83656]
[1723876445636,23.89650399,2606.9,2606.5,7.67303]
[1723876446173,23.89650399,2606.9,2606.5,3.83647]
[1723876446521,3.58695033,2606.7,2606.3,3.83672]
[1723876446981,0.04860187,2606.6,2606.2,3.0]
[1723876447183,2.3771,2606.5,2606.3,3.0]
[1723876447395,3.48298425,2606.5,2606.3,3.0]
[1723876447602,0.04861449,2606.4,2606.2,3.0]
[1723876448191,0.04861449,2606.4,2605.9,3.83734]
[1723876448391,25.18931973,2606.4,2605.9,3.83734]
[1723876448594,1.20985033,2606.3,2605.9,3.83734]
[1723876448868,0.04856086,2606.2,2605.9,3.83734]
[1723876449296,1.20985033,2606.3,2605.9,3.83734]
[1723876449469,0.0485286,2606.1,2605.9,3.83734]
[1723876449673,1.20985033,2606.3,2605.9,3.83734]
[1723876449873,0.04812282,2606.0,2605.9,3.83734]
[1723876450075,1.20985033,2606.3,2605.9,3.83734]
[1723876450076,1.20985033,2606.3,2605.9,6.83734]
[1723876450270,0.04812282,2606.0,2605.9,6.83734]
[1723876450519,1.20985033,2606.3,2605.9,6.83734]
[1723876450825,0.04812901,2606.0,2605.9,6.83734]
[1723876450971,1.20985033,2606.3,2605.9,6.83734]
[1723876451175,0.04811407,2606.0,2605.9,6.83734]
[1723876451713,1.20985033,2606.3,2605.9,6.83734]
[1723876452233,0.04814216,2606.2,2605.9,6.83734]
[1723876452392,1.20985033,2606.3,2605.9,6.83734]
[1723876452593,1.20985033,2606.3,2605.7,3.83769]
[1723876452594,3.93315918,2606.2,2605.7,3.8376]
[1723876452811,3.52875033,2606.1,2605.7,3.8376]
[1723876452990,3.52875033,2606.1,2605.7,7.67525]
[1723876453195,0.04815466,2606.0,2605.8,3.83752]
[1723876453614,1.20985033,2606.2,2605.8,3.83752]
[1723876453793,4.11690972,2606.2,2605.8,3.83752]
[1723876454025,0.04815452,2606.1,2605.8,3.83752]
[1723876455228,1.25800485,2606.1,2605.8,3.83752]
[1723876455432,1.25800485,2606.1,2605.8,3.83751]
[1723876457824,1.25800485,2606.1,2605.8,7.67502]
[1723876458335,1.25800485,2606.1,2605.8,3.83751]
[1723876459461,1.25800485,2606.1,2605.8,7.67502]
[1723876460319,1.25800485,2606.1,2605.8,3.83751]
[1723876460558,1.25800485,2606.1,2605.8,7.675]
[1723876460764,0.04815452,2606.1,2605.8,7.675]
[1723876462455,0.04815452,2606.1,2605.8,3.83748]
[1723876463067,4.02950014,2606.1,2605.6,3.83782]
[1723876463264,3.52875033,2606.0,2605.4,3.0]
[1723876463421,0.84404773,2605.9,2605.6,3.83788]
[1723876463622,2.05389806,2605.9,2605.6,3.83788]
[1723876464245,0.84404773,2605.9,2605.6,3.83788]
[1723876466326,0.43727981,2605.8,2605.4,3.83807]
[1723876466526,0.43727981,2605.8,2605.4,7.67617]
[1723876466763,0.04805526,2605.7,2605.4,3.83807]
[1723876466968,0.04805526,2605.7,2605.4,7.67617]
[1723876467194,4.14505655,2605.7,2605.4,3.83807]
[1723876467509,0.04792903,2605.6,2605.4,3.83807]
[1723876468106,0.04792903,2605.6,2605.2,6.83842]
[1723876468107,0.04792903,2605.6,2605.2,3.83838]
[1723876468316,0.44932495,2605.6,2605.0,7.67729]
[1723876468520,2.3189,2605.5,2605.1,3.83859]
[1723876468809,5.44627953,2605.5,2605.1,3.83859]
[1723876468993,0.04784665,2605.4,2605.1,3.83859]
[1723876472907,0.04784665,2605.4,2604.9,7.67765]
[1723876473187,0.04784665,2605.4,2604.9,3.83881]
[1723876473636,0.04784665,2605.4,2605.0,3.83867]
[1723876474008,0.04784665,2605.4,2605.1,3.83859]
[1723876475525,0.04784665,2605.4,2605.2,3.83846]
[1723876477824,19.62,2605.6,2605.2,3.83846]
[1723876478438,0.04781834,2605.5,2605.2,3.83846]
[1723876489833,0.04781834,2605.5,2605.1,7.67712]
[1723876490472,0.04781834,2605.5,2605.1,3.83853]
[1723876491964,2.2911,2605.4,2605.1,3.83853]
[1723876492163,2.2911,2605.4,2604.9,6.17451]
[1723876492164,2.2911,2605.4,2604.9,3.83881]
[1723876492332,0.04779691,2605.3,2604.7,6.83906]
[1723876492536,3.83864,2605.1,2604.5,3.83938]
[1723876492729,2.2911,2605.0,2604.5,3.83938]
[1723876492944,6.17765507,2605.0,2604.5,3.83938]
[1723876493685,2.33885507,2605.0,2604.5,3.83938]
[1723876494041,3.07758961,2605.0,2604.5,3.83938]
[1723876494683,3.07758961,2605.0,2604.5,7.67881]
[1723876494884,3.07758961,2605.0,2604.6,3.83935]
[1723876496182,2.33885507,2605.0,2604.6,3.83935]
[1723876497780,0.04775507,2605.0,2604.9,3.83891]
[1723876498208,2.2911,2605.2,2604.9,3.83891]
[1723876498685,0.04766474,2605.1,2604.9,3.83891]
[1723876500577,0.04766474,2605.1,2605.0,3.83877]
[1723876501118,0.04770277,2605.1,2605.0,3.83877]
[1723876501302,3.50095033,2605.5,2605.0,3.83877]
[1723876501473,0.04622751,2605.4,2605.0,3.83877]
[1723876501677,0.04622751,2605.4,2605.1,3.8386]
[1723876502114,0.04622751,2605.4,2605.2,3.83847]
[1723876503983,0.04622751,2605.4,2605.1,7.6772]
[1723876504266,0.04622751,2605.4,2605.1,7.67714]
[1723876504406,1.25607784,2605.4,2605.1,3.83854]
[1723876504613,1.25607784,2605.4,2605.2,3.83846]
[1723876504614,0.04622751,2605.4,2605.2,3.83846]
[1723876505000,1.25607784,2605.4,2605.1,3.83854]
[1723876505199,0.746722,2605.4,2605.1,3.83854]
[1723876505400,0.04317927,2605.3,2605.1,3.83854]
[1723876508083,3.90208865,2605.5,2605.1,3.83854]
[1723876508288,0.04318922,2605.4,2605.1,3.83854]
[1723876510228,1.65417787,2605.4,2605.1,3.83854]
[1723876511069,0.04318922,2605.4,2605.1,3.83854]
[1723876512048,2.3346,2605.3,2604.7,3.83912]
[1723876512217,2.3346,2605.3,2604.8,3.0]
[1723876512218,1.61098865,2605.2,2604.8,3.0]
[1723876512419,0.04318305,2605.2,2604.8,3.0]
[1723876512625,1.6541717,2605.2,2604.8,3.0]
[1723876512927,0.043169,2605.1,2604.8,3.0]
[1723876513336,2.3346,2605.0,2604.8,3.0]
[1723876513534,7.78437865,2605.0,2604.5,3.83938]
[1723876513712,0.04315713,2604.9,2604.5,3.83938]
[1723876513906,1.02729797,2604.9,2604.5,3.83938]
[1723876514308,1.20908493,2604.8,2604.5,3.83938]
[1723876514570,1.02729797,2604.9,2604.5,3.83938]
[1723876514571,2.2363829,2604.9,2604.5,3.83938]
[1723876514721,0.04311604,2604.7,2604.5,3.83938]
[1723876515052,19.62,2604.8,2604.3,7.67943]
[1723876515344,0.04310985,2604.7,2604.5,3.8395]
[1723876515569,0.04310985,2604.7,2604.5,3.83942]
[1723876515766,19.62,2604.8,2604.5,3.83942]
[1723876516122,0.04307764,2604.7,2604.5,3.83942]
[1723876516329,19.62,2604.8,2604.5,3.83942]
[1723876516540,0.04306977,2604.6,2604.5,3.83942]
[1723876516869,19.62,2604.8,2604.5,3.83942]
[1723876517339,0.04308383,2604.7,2604.5,3.83942]
[1723876517729,19.62,2604.8,2604.5,3.83942]
[1723876517930,0.04308383,2604.7,2604.5,3.83942]
[1723876518322,19.62,2604.8,2604.5,3.83942]
[1723876518526,0.04308383,2604.7,2604.5,3.83942]
[1723876518962,19.62,2604.7,2604.5,3.83942]
[1723876519138,0.04306977,2604.6,2604.5,3.83942]
[1723876519528,2.37766977,2604.6,2604.3,3.83971]
[1723876519727,2.37766977,2604.6,2604.3,7.67943]
[1723876519728,3.5867547,2604.6,2604.3,7.67943]
[1723876519966,2.37766977,2604.6,2604.3,3.83971]
[1723876520167,3.5867547,2604.6,2604.3,7.67943]
[1723876520377,2.37766977,2604.6,2604.3,3.83971]
[1723876520561,2.37766977,2604.6,2604.3,7.67942]
[1723876520745,2.37766977,2604.6,2604.3,3.83971]
[1723876520943,2.37766977,2604.6,2604.3,7.67943]
[1723876521838,0.04306977,2604.6,2604.4,3.83964]
[1723876522042,0.04306977,2604.6,2604.5,3.8395]
[1723876524979,19.66306977,2604.6,2604.5,3.8395]
[1723876527235,19.66306977,2604.6,2604.5,7.679]
[1723876527480,19.66306977,2604.6,2604.5,10.1281]
[1723876529980,19.66306977,2604.6,2604.5,3.8395]
[1723876530787,0.04306977,2604.6,2604.5,3.8395]
[1723876530974,19.62,2604.9,2604.6,3.83935]
[1723876531655,19.62,2604.9,2604.6,7.6787]
[1723876531862,19.62,2604.9,2604.6,3.83935]
[1723876533302,20.82908493,2604.9,2604.6,3.83935]
[1723876533594,19.62,2604.9,2604.6,3.83935]
[1723876534347,20.82908493,2604.9,2604.6,3.83935]
[1723876535613,19.62,2604.9,2604.6,3.83935]
[1723876535825,19.62,2604.9,2604.6,3.83924]
[1723876536339,19.62,2604.9,2604.7,3.83912]
[1723876536510,0.10398758,2604.8,2604.7,3.83912]
[1723876536820,19.72398758,2604.8,2604.7,3.83912]
[1723876537517,19.72398758,2604.8,2604.6,7.67851]
[1723876537817,19.72398758,2604.8,2604.6,3.83924]
[1723876540704,19.72398758,2604.8,2604.6,7.67852]
[1723876540904,21.97868758,2604.8,2604.6,3.83924]
[1723876541233,25.50654976,2604.8,2604.4,3.83956]
[1723876541538,25.50654976,2604.8,2604.4,7.67913]
[1723876541739,25.50654976,2604.8,2604.4,3.83956]
[1723876541910,25.50654976,2604.8,2604.4,7.67914]
[1723876544129,25.50654976,2604.8,2604.4,3.83956]
[1723876544348,3.92083877,2604.7,2604.4,3.83956]
[1723876544646,3.92083877,2604.7,2604.2,6.83987]
[1723876544647,0.10400541,2604.6,2604.2,6.83984]
[1723876545046,0.10400541,2604.6,2604.2,10.6797]
[1723876545419,0.10400541,2604.6,2604.2,10.67971]
[1723876546718,0.10400541,2604.6,2604.2,10.67969]
[1723876547743,0.10400541,2604.6,2604.3,3.83979]
[1723876548675,2.2547,2604.5,2604.3,3.83979]
[1723876549175,0.10396371,2604.4,2604.3,3.83979]
[1723876550379,1.20908493,2604.7,2604.3,3.83979]
[1723876550672,0.10396371,2604.4,2604.3,3.83979]
[1723876550857,1.20908493,2604.7,2604.3,3.83979]
[1723876551171,0.10394309,2604.4,2604.3,3.83979]
[1723876551461,0.10396653,2604.6,2604.3,3.83979]
[1723876551668,0.10394309,2604.4,2604.3,3.83979]
[1723876551830,1.20908493,2604.7,2604.3,3.83979]
[1723876552029,0.10399038,2604.4,2604.3,3.83979]
[1723876552369,0.10393794,2604.4,2604.3,3.83979]
[1723876552773,1.20908493,2604.6,2604.3,3.83979]
[1723876552929,0.10393794,2604.4,2604.3,3.83979]
[1723876553341,1.20908493,2604.7,2604.3,3.83979]
[1723876553566,0.10401381,2604.6,2604.3,3.83979]
[1723876554251,1.31309874,2604.6,2604.3,3.83979]
[1723876557483,1.20908493,2604.5,2604.3,3.83979]
[1723876557635,1.31309874,2604.6,2604.3,3.83979]
[1723876557835,0.10391732,2604.4,2604.3,3.83979]
[1723876558080,1.20908493,2604.6,2604.3,3.83979]
[1723876558373,0.10391732,2604.4,2604.3,3.83979]
[1723876558571,1.20908493,2604.6,2604.3,3.83979]
[1723876559239,1.31308702,2604.5,2604.3,3.83979]
[1723876559876,0.10400209,2604.5,2604.3,3.83979]
[1723876560193,0.10400209,2604.5,2604.4,7.6793]
[1723876560483,21.23098865,2604.8,2604.4,7.6793]
[1723876560484,19.62,2604.8,2604.7,3.83921]
[1723876560779,19.62,2604.8,2604.7,7.67842]
[1723876560953,20.82908493,2604.8,2604.7,7.67842]
[1723876561177,19.62,2604.8,2604.7,7.67842]
[1723876561353,19.62,2604.8,2604.7,10.5229419]
[1723876564371,19.62,2604.8,2604.7,9.94552]
[1723876566463,0.09623437,2604.8,2604.7,9.94552]
[1723876566656,1.20908493,2605.1,2604.9,3.83887]
[1723876567279,1.20908493,2605.1,2604.7,3.83912]
[1723876567581,1.20908493,2605.1,2604.9,3.83891]
[1723876569082,1.20908493,2605.1,2604.7,3.83907]
[1723876570068,1.20908493,2605.1,2604.8,3.83905]
[1723876571705,1.20908493,2605.1,2604.9,3.83889]
[1723876572496,20.82908493,2605.1,2604.9,3.83889]
[1723876578606,23.07309229,2605.1,2604.9,3.83889]
[1723876578808,23.07309229,2605.1,2604.7,3.83907]
[1723876579473,23.07309229,2605.1,2604.9,3.8389]
[1723876579675,20.82908493,2605.1,2604.9,3.8389]
[1723876581513,0.09284413,2605.0,2604.9,3.8389]
[1723876582008,0.09284413,2605.0,2604.9,7.67781]
[1723876584899,20.82908493,2605.2,2605.1,3.83862]
[1723876584900,19.62,2605.2,2605.1,3.83862]
[1723876585110,0.09007311,2605.2,2605.1,3.83862]
[1723876585787,1.20908493,2605.3,2605.1,3.83862]
[1723876585997,1.20908493,2605.3,2605.2,3.83847]
[1723876586202,1.20908493,2605.4,2605.2,3.83847]